[Event "IV Elllobregat Open Chess Tmnt"]
[Site "Sant Boi de Llobregat, Spain"]
[Date "2023.11.30"]
[Round "1.26"]
[White "Pranav, Anand"]
[Black "Hulka, Valentyn"]
[Result "1-0"]
[TimeControl "90min/40moves + 15min/end + 30sec from move 1"]
[WhiteFideId "46626786"]
[BlackFideId "34107061"]
[WhiteElo "2520"]
[BlackElo "2310"]

1. e4 {[%clk 01:30:54]} {[%emt 00:00:04]} c5 {[%clk 01:30:13]} {[%emt
00:00:48]} 2. Nf3 {[%clk 01:31:18]} {[%emt 00:00:06]} Nc6 {[%clk 01:30:38]}
{[%emt 00:00:05]} 3. Bb5 {[%clk 01:31:43]} {[%emt 00:00:04]} Nf6 {[%clk
01:31:02]} {[%emt 00:00:06]} 4. Bxc6 {[%clk 01:32:00]} {[%emt 00:00:14]} dxc6
{[%clk 01:31:22]} {[%emt 00:00:09]} 5. d3 {[%clk 01:32:25]} {[%emt 00:00:04]}
Qc7 {[%clk 01:31:46]} {[%emt 00:00:07]} 6. e5 {[%clk 01:32:36]} {[%emt
00:00:20]} Nd5 {[%clk 01:32:08]} {[%emt 00:00:08]} 7. c4 {[%clk 01:32:47]}
{[%emt 00:00:20]} Nb6 {[%clk 01:31:30]} {[%emt 00:01:08]} 8. O-O {[%clk
01:31:45]} {[%emt 00:01:31]} Bf5 {[%clk 01:29:40]} {[%emt 00:02:20]} 9. Qe2
{[%clk 01:27:34]} {[%emt 00:04:41]} O-O-O {[%clk 01:10:44]} {[%emt 00:19:24]}
10. Rd1 {[%clk 01:26:35]} {[%emt 00:01:31]} h6 {[%clk 01:06:27]} {[%emt
00:04:47]} 11. Be3 {[%clk 01:16:01]} {[%emt 00:11:03]} Nd7 {[%clk 00:56:27]}
{[%emt 00:10:30]} 12. d4 {[%clk 01:07:02]} {[%emt 00:09:29]} e6 {[%clk
00:44:46]} {[%emt 00:12:11]} 13. Nc3 {[%clk 01:02:42]} {[%emt 00:04:49]} Be7
{[%clk 00:38:31]} {[%emt 00:06:45]} 14. Bf4 {[%clk 00:46:12]} {[%emt 00:17:01]}
cxd4 {[%clk 00:33:29]} {[%emt 00:05:31]} 15. Nxd4 {[%clk 00:45:50]} {[%emt
00:00:52]} Bg6 {[%clk 00:30:20]} {[%emt 00:03:40]} 16. Qe3 {[%clk 00:33:56]}
{[%emt 00:12:23]} Qb6 {[%clk 00:23:40]} {[%emt 00:07:11]} 17. a3 {[%clk
00:27:25]} {[%emt 00:07:02]} a6 {[%clk 00:18:14]} {[%emt 00:05:56]} 18. b3
{[%clk 00:21:04]} {[%emt 00:06:50]} c5 {[%clk 00:17:52]} {[%emt 00:00:52]} 19.
Nde2 {[%clk 00:18:47]} {[%emt 00:02:47]} Nb8 {[%clk 00:15:48]} {[%emt
00:02:34]} 20. Na4 {[%clk 00:17:46]} {[%emt 00:01:31]} Qa5 {[%clk 00:14:29]}
{[%emt 00:01:49]} 21. Rd6 {[%clk 00:15:37]} {[%emt 00:02:39]} Bxd6 {[%clk
00:11:46]} {[%emt 00:03:12]} 22. exd6 {[%clk 00:16:06]} {[%emt 00:00:01]} Nd7
{[%clk 00:11:48]} {[%emt 00:00:28]} 23. Bg3 {[%clk 00:12:09]} {[%emt 00:04:27]}
Kb8 {[%clk 00:11:10]} {[%emt 00:01:08]} 24. f3 {[%clk 00:11:07]} {[%emt
00:01:31]} Rc8 {[%clk 00:11:05]} {[%emt 00:00:35]} 25. Nec3 {[%clk 00:08:45]}
{[%emt 00:02:52]} Qd8 {[%clk 00:07:41]} {[%emt 00:03:55]} 26. Ra2 {[%clk
00:05:29]} {[%emt 00:03:46]} Qg5 {[%clk 00:07:24]} {[%emt 00:00:47]} 27. Bf4
{[%clk 00:05:47]} {[%emt 00:00:12]} Qf5 {[%clk 00:07:33]} {[%emt 00:00:21]} 28.
Ne4 {[%clk 00:05:51]} {[%emt 00:00:27]} h5 {[%clk 00:07:08]} {[%emt 00:00:54]}
29. h4 {[%clk 00:05:38]} {[%emt 00:00:43]} Rc6 {[%clk 00:06:04]} {[%emt
00:01:34]} 30. Rd2 {[%clk 00:04:48]} {[%emt 00:01:20]} Rd8 {[%clk 00:03:46]}
{[%emt 00:02:48]} 31. Bg3 {[%clk 00:04:51]} {[%emt 00:00:27]} f6 {[%clk
00:03:34]} {[%emt 00:00:42]} 32. b4 {[%clk 00:03:55]} {[%emt 00:01:26]} cxb4
{[%clk 00:02:08]} {[%emt 00:01:56]} 33. axb4 {[%clk 00:04:12]} {[%emt
00:00:13]} b6 {[%clk 00:01:39]} {[%emt 00:00:59]} 34. Rb2 {[%clk 00:02:58]}
{[%emt 00:01:43]} Rxc4 {[%clk 00:00:36]} {[%emt 00:01:33]} 35. Nxb6 {[%clk
00:03:19]} {[%emt 00:00:09]} Rc6 {[%clk 00:00:33]} {[%emt 00:00:34]} 36. Nxd7+
{[%clk 00:02:42]} {[%emt 00:01:06]} Rxd7 {[%clk 00:01:01]} {[%emt 00:00:01]} 37.
Nc5 {[%clk 00:02:44]} {[%emt 00:00:29]} e5 {[%clk 00:00:36]} {[%emt 00:00:54]}
38. b5 {[%clk 00:02:48]} {[%emt 00:00:28]} axb5 {[%clk 00:00:37]} {[%emt
00:00:27]} 39. Rxb5+ {[%clk 00:03:14]} {[%emt 00:00:05]} Kc8 {[%clk 00:00:18]}
{[%emt 00:00:03]} 40. Qa3 {[%clk 00:18:11]} {[%emt 00:03:32]} 1-0

[Event "IV Elllobregat Open Chess Tmnt"]
[Site "Sant Boi de Llobregat, Spain"]
[Date "2023.11.30"]
[Round "1.27"]
[White "Alinasab, Mobina"]
[Black "Pranesh, M"]
[Result "0-1"]
[TimeControl "90min/40moves + 15min/end + 30sec from move 1"]
[WhiteFideId "12528897"]
[BlackFideId "35028600"]
[WhiteElo "2306"]
[BlackElo "2519"]

1. e4 {[%clk 01:30:50]} {[%emt 00:00:09]} e5 {[%clk 01:30:44]} {[%emt
00:00:16]} 2. Bc4 {[%clk 01:30:56]} {[%emt 00:00:25]} Nf6 {[%clk 01:31:03]}
{[%emt 00:00:11]} 3. Nc3 {[%clk 01:31:20]} {[%emt 00:00:06]} Nc6 {[%clk
01:31:23]} {[%emt 00:00:09]} 4. d3 {[%clk 01:31:44]} {[%emt 00:00:07]} Na5
{[%clk 01:31:34]} {[%emt 00:00:19]} 5. Bb3 {[%clk 01:31:21]} {[%emt 00:00:53]}
Nxb3 {[%clk 01:31:54]} {[%emt 00:00:09]} 6. axb3 {[%clk 01:31:46]} {[%emt
00:00:06]} d5 {[%clk 01:32:18]} {[%emt 00:00:06]} 7. exd5 {[%clk 01:32:04]}
{[%emt 00:00:12]} Nxd5 {[%clk 01:32:42]} {[%emt 00:00:06]} 8. Qh5 {[%clk
01:32:30]} {[%emt 00:00:04]} Nb4 {[%clk 01:30:29]} {[%emt 00:02:42]} 9. Qxe5+
{[%clk 01:32:49]} {[%emt 00:00:11]} Be7 {[%clk 01:30:29]} {[%emt 00:00:30]} 10.
Qe2 {[%clk 01:33:14]} {[%emt 00:00:06]} Bg4 {[%clk 01:26:32]} {[%emt 00:04:27]}
11. f3 {[%clk 01:05:35]} {[%emt 00:28:09]} Be6 {[%clk 01:24:54]} {[%emt
00:02:07]} 12. Be3 {[%clk 01:03:52]} {[%emt 00:02:13]} O-O {[%clk 01:24:29]}
{[%emt 00:00:55]} 13. Qd2 {[%clk 01:02:26]} {[%emt 00:01:56]} Re8 {[%clk
01:23:49]} {[%emt 00:01:11]} 14. Nge2 {[%clk 00:58:14]} {[%emt 00:04:43]} Bh4+
{[%clk 01:10:42]} {[%emt 00:13:36]} 15. Kd1 {[%clk 00:44:03]} {[%emt 00:14:41]}
a5 {[%clk 01:07:59]} {[%emt 00:03:13]} 16. Kc1 {[%clk 00:42:04]} {[%emt
00:02:29]} f5 {[%clk 01:04:44]} {[%emt 00:03:44]} 17. d4 {[%clk 00:36:51]}
{[%emt 00:05:43]} f4 {[%clk 00:57:04]} {[%emt 00:08:10]} 18. Nxf4 {[%clk
00:24:17]} {[%emt 00:13:04]} Bf5 {[%clk 00:56:47]} {[%emt 00:00:48]} 19. Ne4
{[%clk 00:12:39]} {[%emt 00:12:07]} Bxe4 {[%clk 00:56:46]} {[%emt 00:00:31]} 20.
fxe4 {[%clk 00:13:02]} {[%emt 00:00:07]} Rxe4 {[%clk 00:57:11]} {[%emt
00:00:05]} 21. g3 {[%clk 00:11:20]} {[%emt 00:02:13]} Qe8 {[%clk 00:50:16]}
{[%emt 00:07:25]} 22. Re1 {[%clk 00:07:26]} {[%emt 00:04:24]} Bg5 {[%clk
00:50:18]} {[%emt 00:00:27]} 23. Ng2 {[%clk 00:03:38]} {[%emt 00:04:17]} Bxe3
{[%clk 00:49:52]} {[%emt 00:00:57]} 24. Rxe3 {[%clk 00:04:02]} {[%emt
00:00:07]} Ra6 {[%clk 00:46:54]} {[%emt 00:03:28]} 25. c3 {[%clk 00:02:28]}
{[%emt 00:02:04]} Rf6 {[%clk 00:41:58]} {[%emt 00:05:26]} 26. Qe2 {[%clk
00:01:36]} {[%emt 00:01:22]} Rxe3 {[%clk 00:41:08]} {[%emt 00:01:19]} 27. Nxe3
{[%clk 00:00:51]} {[%emt 00:01:15]} Nd5 {[%clk 00:40:20]} {[%emt 00:01:18]} 28.
Rxa5 {[%clk 00:00:33]} {[%emt 00:00:49]} Qxe3+ {[%clk 00:39:36]} {[%emt
00:01:14]} 29. Qxe3 {[%clk 00:00:56]} {[%emt 00:00:07]} Nxe3 {[%clk 00:40:03]}
{[%emt 00:00:03]} 30. Re5 {[%clk 00:00:49]} {[%emt 00:00:37]} Ng4 {[%clk
00:39:39]} {[%emt 00:00:53]} 31. Re7 {[%clk 00:00:55]} {[%emt 00:00:24]} Rf7
{[%clk 00:38:43]} {[%emt 00:01:27]} 32. Re8+ {[%clk 00:01:19]} {[%emt
00:00:06]} Rf8 {[%clk 00:39:09]} {[%emt 00:00:04]} 33. Re7 {[%clk 00:01:44]}
{[%emt 00:00:04]} Rc8 {[%clk 00:39:25]} {[%emt 00:00:14]} 34. d5 {[%clk
00:01:09]} {[%emt 00:01:05]} Nxh2 {[%clk 00:38:17]} {[%emt 00:01:38]} 35. c4
{[%clk 00:00:37]} {[%emt 00:01:02]} h5 {[%clk 00:38:20]} {[%emt 00:00:27]} 36.
Kc2 {[%clk 00:00:35]} {[%emt 00:00:31]} Nf1 {[%clk 00:38:24]} {[%emt 00:00:26]}
37. d6 {[%clk 00:00:33]} {[%emt 00:00:32]} cxd6 {[%clk 00:38:47]} {[%emt
00:00:07]} 38. Rxb7 {[%clk 00:00:59]} {[%emt 00:00:04]} Nxg3 {[%clk 00:39:11]}
{[%emt 00:00:05]} 39. Rb5 {[%clk 00:00:58]} {[%emt 00:00:32]} h4 {[%clk
00:38:46]} {[%emt 00:00:54]} 40. Rg5 {[%clk 00:16:22]} {[%emt 00:00:06]} Kf7
{[%clk 00:54:12]} {[%emt 00:00:04]} 0-1

[Event "IV Elllobregat Open Chess Tmnt"]
[Site "Sant Boi de Llobregat, Spain"]
[Date "2023.11.30"]
[Round "1.28"]
[White "Lamard, Guillaume"]
[Black "Dishman, Stephen"]
[Result "1-0"]
[TimeControl "90min/40moves + 15min/end + 30sec from move 1"]
[WhiteFideId "600261"]
[BlackFideId "403024"]
[WhiteElo "2514"]
[BlackElo "2306"]

1. e4 {[%emt 00:01:46]} c6 {[%emt 00:00:11]} 2. d4 {[%emt 00:00:04]} d5 {[%emt
00:00:06]} 3. e5 {[%emt 00:00:03]} c5 {[%emt 00:00:30]} 4. Nf3 {[%emt
00:00:21]} cxd4 {[%emt 00:00:06]} 5. Nxd4 {[%emt 00:00:05]} Nc6 {[%emt
00:00:07]} 6. Nxc6 {[%emt 00:00:05]} bxc6 {[%emt 00:00:09]} 7. Bd3 {[%emt
00:00:03]} e6 {[%emt 00:00:21]} 8. O-O {[%emt 00:00:09]} Ne7 {[%emt 00:00:33]}
9. Be3 {[%emt 00:04:18]} a5 {[%emt 00:05:00]} 10. Nd2 {[%emt 00:05:37]} Ba6
{[%emt 00:10:43]} 11. Qe2 {[%emt 00:02:31]} Bxd3 {[%emt 00:01:19]} 12. cxd3
{[%emt 00:01:31]} Nf5 {[%emt 00:01:09]} 13. Rac1 {[%emt 00:12:45]} Nxe3 {[%emt
00:05:55]} 14. Qxe3 {[%emt 00:02:52]} Ra6 {[%emt 00:21:09]} 15. Rc2 {[%emt
00:03:34]} Be7 {[%emt 00:00:23]} 16. Rfc1 {[%emt 00:01:22]} Qa8 {[%emt
00:05:13]} 17. Nf3 {[%emt 00:08:05]} O-O {[%emt 00:02:19]} 18. d4 {[%emt
00:01:54]} Rb8 {[%emt 00:02:14]} 19. Ne1 {[%emt 00:10:23]} Qb7 {[%emt
00:01:25]} 20. Nd3 {[%emt 00:12:21]} Qb5 {[%emt 00:06:22]} 21. g3 {[%emt
00:07:17]} Qa4 {[%emt 00:00:03]} 22. b3 {[%emt 00:00:27]} Qb5 {[%emt 00:04:25]}
23. Nc5 Bxc5 24. Rxc5 Qb7 25. Qc3 a4 26. Rxc6 Rxc6 27. Qxc6 Qxc6 28. Rxc6 axb3
29. axb3 g5 30. Rc3 {[%emt 00:24:03]} Ra8 {[%emt 00:11:09]} 31. Kg2 {[%emt
00:02:45]} Ra2 {[%emt 00:00:13]} 32. Kf3 {[%emt 00:00:36]} Kg7 {[%emt
00:06:19]} 33. h3 {[%emt 00:04:46]} Rb2 {[%emt 00:03:15]} 34. g4 {[%emt
00:00:46]} Kg6 {[%emt 00:00:41]} 35. Rd3 {[%emt 00:00:17]} h5 {[%emt 00:04:02]}
36. gxh5+ {[%emt 00:00:20]} Kxh5 {[%emt 00:00:09]} 37. Kg3 {[%emt 00:03:38]}
Rb1 {[%emt 00:01:33]} 38. Kg2 {[%emt 00:01:24]} Kg6 {[%emt 00:01:38]} 39. Kf3
{[%emt 00:03:31]} Rb2 {[%emt 00:02:18]} 40. Rc3 {[%emt 00:02:06]} Kf5 {[%emt
00:00:13]} 41. Ke3 {[%emt 00:00:05]} Kg6 {[%emt 00:05:37]} 42. Rd3 {[%emt
00:02:41]} Kh5 {[%emt 00:00:06]} 43. Kf3 {[%emt 00:03:54]} Rc2 {[%emt
00:00:52]} 44. Kg3 {[%emt 00:01:48]} Rc1 {[%emt 00:00:37]} 45. Rf3 {[%emt
00:01:26]} Kg6 {[%emt 00:00:24]} 46. Rf6+ Kg7 {[%emt 00:00:18]} 47. Kg4 {[%emt
00:02:00]} Rd1 {[%emt 00:00:23]} 48. Kxg5 {[%emt 00:00:09]} Rxd4 {[%emt
00:00:29]} 49. Rf3 {[%emt 00:00:25]} Rd1 {[%emt 00:01:16]} 50. h4 {[%emt
00:02:15]} Rg1+ {[%emt 00:00:28]} 51. Rg3 {[%emt 00:01:22]} Rh1 {[%emt
00:01:34]} 52. h5 {[%emt 00:01:15]} Rh2 {[%emt 00:00:10]} 53. f4 {[%emt
00:00:28]} Rf2 {[%emt 00:02:10]} 54. b4 {[%emt 00:00:33]} Rb2 {[%emt 00:00:55]}
55. h6+ {[%emt 00:00:54]} Kh7 {[%emt 00:00:27]} 56. Kf6 {[%emt 00:00:16]} Rxb4
{[%emt 00:00:28]} 57. Kxf7 {[%emt 00:02:43]} Rxf4+ {[%emt 00:00:14]} 58. Kxe6
{[%emt 00:01:04]} d4 {[%emt 00:01:56]} 59. Kd7 {[%emt 00:02:01]} Rf7+ {[%emt
00:01:07]} 60. Kd6 {[%emt 00:00:06]} Kxh6 {[%emt 00:00:44]} 61. e6 {[%emt
00:00:05]} Ra7 {[%emt 00:00:41]} 62. e7 {[%emt 00:00:18]} Ra8 {[%emt 00:00:30]}
63. Kd7 {[%emt 00:00:39]} 1-0

[Event "IV Elllobregat Open Chess Tmnt"]
[Site "Sant Boi de Llobregat, Spain"]
[Date "2023.11.30"]
[Round "1.29"]
[White "Sai Agni Jeevitesh, J"]
[Black "Prraneeth, Vuppala"]
[Result "0-1"]
[TimeControl "90min/40moves + 15min/end + 30sec from move 1"]
[WhiteFideId "5070147"]
[BlackFideId "46622373"]
[WhiteElo "2302"]
[BlackElo "2512"]

1. d4 {[%clk 01:30:45]} {[%emt 00:00:14]} d5 {[%clk 01:30:38]} {[%emt
00:00:23]} 2. c4 {[%clk 01:30:55]} {[%emt 00:00:20]} e6 {[%clk 01:30:44]}
{[%emt 00:00:24]} 3. Nf3 {[%clk 01:31:01]} {[%emt 00:00:23]} Nf6 {[%clk
01:30:20]} {[%emt 00:00:54]} 4. g3 {[%clk 01:31:01]} {[%emt 00:00:31]} h6
{[%clk 01:27:47]} {[%emt 00:03:03]} 5. Bg2 {[%clk 01:30:59]} {[%emt 00:00:31]}
Bd6 {[%clk 01:28:09]} {[%emt 00:00:08]} 6. O-O {[%clk 01:31:07]} {[%emt
00:00:22]} O-O {[%clk 01:28:33]} {[%emt 00:00:06]} 7. Qc2 {[%clk 01:30:12]}
{[%emt 00:01:26]} Nc6 {[%clk 01:26:59]} {[%emt 00:02:05]} 8. Nbd2 {[%clk
01:28:26]} {[%emt 00:02:15]} b6 {[%clk 01:26:28]} {[%emt 00:01:01]} 9. a3
{[%clk 01:19:03]} {[%emt 00:09:53]} Bb7 {[%clk 01:24:55]} {[%emt 00:02:03]} 10.
b4 {[%clk 01:14:19]} {[%emt 00:05:14]} dxc4 {[%clk 01:15:55]} {[%emt 00:09:30]}
11. Nxc4 {[%clk 01:13:15]} {[%emt 00:01:34]} b5 {[%clk 01:12:49]} {[%emt
00:03:37]} 12. Nxd6 {[%clk 00:59:58]} {[%emt 00:13:47]} cxd6 {[%clk 01:13:10]}
{[%emt 00:00:08]} 13. Bb2 {[%clk 00:55:25]} {[%emt 00:05:03]} a5 {[%clk
01:04:54]} {[%emt 00:08:47]} 14. bxa5 {[%clk 00:52:32]} {[%emt 00:03:23]} Nxa5
{[%clk 01:04:25]} {[%emt 00:01:00]} 15. Bc3 {[%clk 00:46:42]} {[%emt 00:06:20]}
Qd7 {[%clk 00:58:30]} {[%emt 00:06:25]} 16. Bxa5 {[%clk 00:41:20]} {[%emt
00:05:52]} Rxa5 {[%clk 00:58:52]} {[%emt 00:00:08]} 17. Rfc1 {[%clk 00:41:33]}
{[%emt 00:00:16]} Rfa8 {[%clk 00:55:33]} {[%emt 00:03:50]} 18. Qb2 {[%clk
00:41:39]} {[%emt 00:00:24]} Bd5 {[%clk 00:47:18]} {[%emt 00:08:44]} 19. Nd2
{[%clk 00:26:44]} {[%emt 00:15:25]} Bxg2 {[%clk 00:47:08]} {[%emt 00:00:40]} 20.
Kxg2 {[%clk 00:27:12]} {[%emt 00:00:02]} Qa7 {[%clk 00:46:24]} {[%emt
00:01:15]} 21. Rc2 {[%clk 00:19:17]} {[%emt 00:08:25]} Nd5 {[%clk 00:43:15]}
{[%emt 00:03:39]} 22. Rac1 {[%clk 00:11:23]} {[%emt 00:08:24]} Rxa3 {[%clk
00:36:04]} {[%emt 00:07:42]} 23. e4 {[%clk 00:08:51]} {[%emt 00:03:02]} Nf6
{[%clk 00:34:21]} {[%emt 00:02:13]} 24. Rc7 {[%clk 00:07:42]} {[%emt 00:01:39]}
Qa5 {[%clk 00:28:50]} {[%emt 00:06:01]} 25. e5 {[%clk 00:07:24]} {[%emt
00:00:49]} dxe5 {[%clk 00:04:59]} {[%emt 00:24:21]} 26. Rc8+ {[%clk 00:07:33]}
{[%emt 00:00:21]} Ne8 {[%clk 00:04:08]} {[%emt 00:01:21]} 27. Ne4 {[%clk
00:07:08]} {[%emt 00:00:54]} Qa6 {[%clk 00:03:40]} {[%emt 00:00:58]} 28. R8c6
{[%clk 00:03:09]} {[%emt 00:04:30]} Qa4 {[%clk 00:02:53]} {[%emt 00:01:17]} 29.
Rc8 {[%clk 00:02:49]} {[%emt 00:00:50]} Kh7 {[%clk 00:03:01]} {[%emt 00:00:22]}
30. Qe2 {[%clk 00:00:42]} {[%emt 00:02:36]} Qxd4 {[%clk 00:02:20]} {[%emt
00:01:11]} 31. Rxa8 {[%clk 00:00:43]} {[%emt 00:00:30]} Rxa8 {[%clk 00:02:46]}
{[%emt 00:00:04]} 32. Rd1 {[%clk 00:00:52]} {[%emt 00:00:20]} Qc4 {[%clk
00:02:39]} {[%emt 00:00:38]} 33. Qf3 {[%clk 00:01:08]} {[%emt 00:00:14]} Ra4
{[%clk 00:02:18]} {[%emt 00:00:51]} 34. Re1 {[%clk 00:00:34]} {[%emt 00:01:05]}
Qd5 {[%clk 00:01:25]} {[%emt 00:01:22]} 35. h4 {[%clk 00:00:33]} {[%emt
00:00:31]} Kg8 {[%clk 00:01:21]} {[%emt 00:00:34]} 36. Re3 {[%clk 00:00:44]}
{[%emt 00:00:20]} f5 {[%clk 00:01:19]} {[%emt 00:00:33]} 37. Nc3 {[%clk
00:01:07]} {[%emt 00:00:07]} Qxf3+ {[%clk 00:01:43]} {[%emt 00:00:05]} 38. Kxf3
{[%clk 00:01:25]} {[%emt 00:00:13]} e4+ {[%clk 00:02:02]} {[%emt 00:00:11]} 39.
Kf4 {[%clk 00:01:40]} {[%emt 00:00:14]} Ra5 {[%clk 00:02:15]} {[%emt 00:00:17]}
40. Ne2 {[%clk 00:15:55]} {[%emt 00:01:15]} b4 {[%clk 00:17:11]} {[%emt
00:00:34]} 41. Rb3 {[%clk 00:16:17]} {[%emt 00:00:08]} Nf6 {[%clk 00:17:06]}
{[%emt 00:00:35]} 0-1

[Event "IV Elllobregat Open Chess Tmnt"]
[Site "Sant Boi de Llobregat, Spain"]
[Date "2023.11.30"]
[Round "1.30"]
[White "Samadov, Read"]
[Black "Tyurin, Artem"]
[Result "1/2-1/2"]
[TimeControl "90min/40moves + 15min/end + 30sec from move 1"]
[WhiteFideId "13417444"]
[BlackFideId "44130112"]
[WhiteElo "2506"]
[BlackElo "2302"]

1. Nf3 {[%clk 01:30:57]} {[%emt 00:00:02]} Nf6 {[%clk 01:30:19]} {[%emt
00:00:41]} 2. c4 {[%clk 01:31:17]} {[%emt 00:00:11]} e6 {[%clk 01:30:40]}
{[%emt 00:00:10]} 3. g3 {[%clk 01:31:40]} {[%emt 00:00:06]} d5 {[%clk
01:31:06]} {[%emt 00:00:04]} 4. Bg2 {[%clk 01:31:55]} {[%emt 00:00:15]} Be7
{[%clk 01:31:21]} {[%emt 00:00:15]} 5. O-O {[%clk 01:32:00]} {[%emt 00:00:24]}
O-O {[%clk 01:31:47]} {[%emt 00:00:04]} 6. b3 {[%clk 01:32:16]} {[%emt
00:00:14]} c5 {[%clk 01:32:01]} {[%emt 00:00:16]} 7. cxd5 {[%clk 01:32:20]}
{[%emt 00:00:26]} Nxd5 {[%clk 01:30:49]} {[%emt 00:01:42]} 8. Bb2 {[%clk
01:31:29]} {[%emt 00:01:21]} Nc6 {[%clk 01:31:13]} {[%emt 00:00:07]} 9. Nc3
{[%clk 01:30:00]} {[%emt 00:01:59]} Bf6 {[%clk 01:30:26]} {[%emt 00:01:16]} 10.
Qc2 {[%clk 01:27:09]} {[%emt 00:03:20]} b6 {[%clk 01:22:50]} {[%emt 00:08:06]}
11. Rad1 {[%clk 01:18:21]} {[%emt 00:09:18]} Nxc3 {[%clk 01:07:22]} {[%emt
00:15:59]} 12. dxc3 {[%clk 01:14:43]} {[%emt 00:04:07]} Qc7 {[%clk 01:07:48]}
{[%emt 00:00:04]} 13. c4 {[%clk 01:08:22]} {[%emt 00:06:51]} Bxb2 {[%clk
01:06:30]} {[%emt 00:01:48]} 14. Ng5 {[%clk 01:04:45]} {[%emt 00:04:07]} f5
{[%clk 01:06:29]} {[%emt 00:00:31]} 15. Qxb2 {[%clk 01:04:19]} {[%emt
00:00:56]} h6 {[%clk 01:05:12]} {[%emt 00:01:47]} 16. Nh3 {[%clk 00:49:08]}
{[%emt 00:15:39]} g5 {[%clk 00:59:47]} {[%emt 00:05:57]} 17. Bxc6 {[%clk
00:38:44]} {[%emt 00:10:54]} Qxc6 {[%clk 01:00:16]} {[%emt 00:00:02]} 18. f3
{[%clk 00:35:55]} {[%emt 00:03:18]} Qc7 {[%clk 00:57:48]} {[%emt 00:02:58]} 19.
Rd2 {[%clk 00:30:49]} {[%emt 00:05:36]} Bb7 {[%clk 00:54:28]} {[%emt 00:03:50]}
20. Nf2 {[%clk 00:29:45]} {[%emt 00:01:34]} Qg7 {[%clk 00:35:00]} {[%emt
00:19:59]} 21. Qxg7+ {[%clk 00:26:13]} {[%emt 00:04:03]} Kxg7 {[%clk 00:34:24]}
{[%emt 00:01:05]} 22. Rfd1 {[%clk 00:25:48]} {[%emt 00:00:54]} Rae8 {[%clk
00:31:16]} {[%emt 00:03:38]} 23. Rd6 {[%clk 00:21:06]} {[%emt 00:05:12]} Rf6
{[%clk 00:23:03]} {[%emt 00:08:44]} 24. a3 {[%clk 00:18:40]} {[%emt 00:02:56]}
e5 {[%clk 00:17:28]} {[%emt 00:06:06]} 25. Rd7+ {[%clk 00:13:09]} {[%emt
00:06:01]} Rf7 {[%clk 00:17:42]} {[%emt 00:00:16]} 26. R1d6 {[%clk 00:11:39]}
{[%emt 00:02:00]} Ree7 {[%clk 00:11:48]} {[%emt 00:06:24]} 27. Rxe7 {[%clk
00:09:04]} {[%emt 00:03:05]} Rxe7 {[%emt 00:00:01]} 28. Nd1 {[%clk 00:07:57]}
{[%emt 00:01:35]} f4 {[%clk 00:08:26]} {[%emt 00:04:22]} 29. Nc3 {[%clk
00:07:17]} {[%emt 00:01:10]} e4 {[%clk 00:07:50]} {[%emt 00:01:07]} 30. fxe4
{[%clk 00:06:42]} {[%emt 00:01:04]} fxg3 {[%clk 00:05:09]} {[%emt 00:03:11]} 31.
hxg3 {[%clk 00:06:47]} {[%emt 00:00:25]} Bxe4 {[%clk 00:04:18]} {[%emt
00:01:21]} 1/2-1/2